[Event "ESTCC-65 2025"]
[Site "Swidnica"]
[Date "2025.04.12"]
[Round "8.16"]
[White "Krupa, Krzysztof"]
[Black "Van Herck, Marcel"]
[Result "1/2-1/2"]
[Annotator "NA"]
[ECO "C13"]
[WhiteElo "1919"]
[BlackElo "1962"]
[PlyCount "49"]
[EventDate "2025.04.05"]
[EventType "team-tourn"]
[EventCountry "POL"]
[SourceTitle "playchess.com"]
[Source "ChessBase"]
[SourceQuality "1"]
[WhiteTeam "Poland"]
[BlackTeam "Belgium"]
[WhiteTeamCountry "POL"]
[BlackTeamCountry "BEL"]
[TimeControl "40/5400+30:1800+30"]

1. e4 {[%emt 0:00:06]} e6 {[%emt 0:00:34]} 2. d4 {[%emt 0:00:17]} d5 {[%emt 0:00:06]} 3. Nc3 {[%emt 0:00:07]} Nf6 {[%emt 0:01:17]} 4. Bg5 {[%emt 0:00:06]} Be7 {[%emt 0:15:41]} 5. e5 {[%emt 0:02:23]} Nfd7 {[%emt 0:00:06]} 6. h4 {[%emt 0:00:13]} h6 {[%emt 0:04:53]} 7. Bxe7 {[%emt 0:01:12]} Qxe7 {[%emt 0:00:05]} 8. Qg4 {[%emt 0:00:05]} O-O {[%emt 0:00:54]} 9. O-O-O {[%emt 0:12:39]} c5 {[%emt 0:02:22]} 10. f4 {[%emt 0:03:17]} Nc6 {[%emt 0:02:24]} 11. Nf3 {[%emt 0:01:34]} cxd4 {[%emt 0:12:01]} 12. Nb5 {[%emt 0:06:57]} f6 {[%emt 0:02:07]} 13. Nbxd4 {[%emt 0:03:04]} fxe5 {[%emt 0:00:19]} 14. Nxc6 {[%emt 0:00:06]} bxc6 {[%emt 0:00:11]} 15. fxe5 {[%emt 0:01:29]} Qf7 {[%emt 0:03:48]} 16. Re1 {[%emt 0:21:07]} Qf4+ {[%emt 0:01:11]} 17. Qxf4 {[%emt 0:00:12]} Rxf4 {[%emt 0:00:04]} 18. c3 {[%emt 0:02:05]} c5 {[%emt 0:00:47]} 19. h5 {[%emt 0:03:08]} a5 {[%emt 0:12:14]} 20. Rh4 {[%emt 0:04:13]} Rxh4 {[%emt 0:00:25]} 21. Nxh4 {[%emt 0:00:02]} Ba6 {[%emt 0:00:29]} 22. Ng6 {[%emt 0:01:16]} Bxf1 {[%emt 0:03:44]} 23. Rxf1 {[%emt 0:00:03]} a4 {[%emt 0:01:20]} 24. Rf4 {[%emt 0:03:23]} c4 {[%emt 0:00:29]} 25. Ne7+ {[%emt 0:04:33]} 1/2-1/2

[Event "ESTCC-65 2025"]
[Site "Swidnica"]
[Date "2025.04.13"]
[Round "9.1"]
[White "Beilfuss, Wilfried"]
[Black "Rooze, Jan"]
[Result "1-0"]
[Annotator "ChessBase"]
[ECO "A46"]
[WhiteElo "2070"]
[BlackElo "2198"]
[PlyCount "65"]
[EventDate "2025.04.05"]
[EventType "team-tourn"]
[EventCountry "POL"]
[SourceTitle "playchess.com"]
[Source "ChessBase"]
[SourceQuality "1"]
[WhiteTeam "Germany"]
[BlackTeam "Belgium"]
[WhiteTeamCountry "GER"]
[BlackTeamCountry "BEL"]
[TimeControl "40/5400+30:1800+30"]

1. d4 {[%emt 0:00:07]} Nf6 {[%emt 0:00:10]} 2. Nf3 {[%emt 0:00:13]} e6 {[%emt 0:00:22]} 3. g3 {[%emt 0:00:13]} c5 {[%emt 0:01:05]} 4. Bg2 {[%emt 0:00:29]} cxd4 {[%emt 0:00:16]} 5. O-O {[%emt 0:00:33]} d5 {[%emt 0:00:36]} 6. Nxd4 {[%emt 0:00:53]} e5 {[%emt 0:02:47]} 7. Nf3 {[%emt 0:00:21]} Nc6 {[%emt 0:01:42]} 8. c4 {[%emt 0:00:25]} d4 {[%emt 0:00:53]} 9. e3 {[%emt 0:00:16]} Be7 {[%emt 0:02:30]} 10. exd4 {[%emt 0:00:55]} exd4 {[%emt 0:00:22]} 11. Bf4 {[%emt 0:01:20]} O-O {[%emt 0:01:30]} 12. Ne5 {[%emt 0:00:23]} Qb6 {[%emt 0:02:06]} 13. Re1 {[%emt 0:07:14]} Be6 {[%emt 0:01:52]} 14. Nd2 {[%emt 0:01:48]} Rac8 {[%emt 0:13:26]} 15. a3 {[%emt 0:13:46]} a5 {[%emt 0:18:34]} 16. Nd3 {[%emt 0:09:30]} Rfe8 {[%emt 0:02:51]} 17. Rc1 {[%emt 0:03:13]} h6 {[%emt 0:06:35]} 18. Ne4 {[%emt 0:04:57]} Nxe4 {[%emt 0:01:56]} 19. Bxe4 {[%emt 0:00:13]} Bf6 {[%emt 0:02:20]} 20. b4 {[%emt 0:02:50]} axb4 {[%emt 0:02:47]} 21. axb4 {[%emt 0:02:01]} Ra8 {[%emt 0:01:15]} 22. Bd2 {[%emt 0:05:40]} Ra2 {[%emt 0:08:08]} 23. Rc2 {[%emt 0:05:19]} Rea8 {[%emt 0:05:26]} 24. Rxa2 {[%emt 0:00:22]} Rxa2 {[%emt 0:00:10]} 25. Qc1 {[%emt 0:02:23]} g5 {[%emt 0:06:22]} 26. h4 {[%emt 0:06:02]} Qd8 {[%emt 0:02:45]} 27. Nc5 {[%emt 0:03:33]} Bc8 {[%emt 0:00:45]} 28. Bd5 {[%emt 0:02:33]} Bf5 {[%emt 0:02:57]} 29. Nxb7 {[%emt 0:08:52]} Qc7 {[%emt 0:02:40]} 30. hxg5 {[%emt 0:00:13]} Rc2 {[%emt 0:01:04]} 31. Qd1 {[%emt 0:03:16]} hxg5 {[%emt 0:01:12]} 32. Bxg5 {[%emt 0:01:22]} Nxb4 {[%emt 0:05:25]} 33. Bxf6 {[%emt 0:02:50]} 1-0

[Event "ESTCC-65 2025"]
[Site "Swidnica"]
[Date "2025.04.13"]
[Round "9.2"]
[White "Goormachtigh, Johan"]
[Black "Mueller, Gerhard"]
[Result "1-0"]
[Annotator "ChessBase"]
[ECO "D52"]
[WhiteElo "2207"]
[BlackElo "2052"]
[PlyCount "67"]
[EventDate "2025.04.05"]
[EventType "team-tourn"]
[EventCountry "POL"]
[SourceTitle "playchess.com"]
[Source "ChessBase"]
[SourceQuality "1"]
[WhiteTeam "Belgium"]
[BlackTeam "Germany"]
[WhiteTeamCountry "BEL"]
[BlackTeamCountry "GER"]
[TimeControl "40/5400+30:1800+30"]

1. d4 {[%emt 0:00:08]} d5 {[%emt 0:00:07]} 2. Nf3 {[%emt 0:00:25]} Nf6 {[%emt 0:00:08]} 3. c4 {[%emt 0:00:21]} c6 {[%emt 0:00:06]} 4. Nc3 {[%emt 0:00:14]} e6 {[%emt 0:00:13]} 5. Bg5 {[%emt 0:00:29]} Nbd7 {[%emt 0:00:45]} 6. e3 {[%emt 0:00:46]} Qa5 {[%emt 0:04:49]} 7. Nd2 {[%emt 0:01:34]} dxc4 {[%emt 0:00:49]} 8. Bxf6 {[%emt 0:00:28]} Nxf6 {[%emt 0:00:38]} 9. Nxc4 {[%emt 0:00:08]} Qc7 {[%emt 0:01:00]} 10. Rc1 {[%emt 0:01:40]} Be7 {[%emt 0:00:38]} 11. g3 {[%emt 0:00:22]} O-O {[%emt 0:01:18]} 12. Bg2 {[%emt 0:00:04]} Bd7 {[%emt 0:10:14]} 13. Qb3 {[%emt 0:11:05]} b5 {[%emt 0:05:56]} 14. Ne5 {[%emt 0:01:03]} Qb6 {[%emt 0:01:07]} 15. O-O {[%emt 0:02:35]} Rac8 {[%emt 0:01:22]} 16. Ne4 {[%emt 0:06:24]} Rfd8 {[%emt 0:01:35]} 17. Nc5 {[%emt 0:03:41]} Be8 {[%emt 0:04:43]} 18. Rc2 {[%emt 0:12:27]} Bd6 {[%emt 0:11:36]} 19. Ned3 {[%emt 0:03:51]} Bxc5 {[%emt 0:03:29]} 20. Nxc5 {[%emt 0:03:44]} Nd7 {[%emt 0:03:07]} 21. Rfc1 {[%emt 0:04:37]} Nxc5 {[%emt 0:02:52]} 22. Rxc5 {[%emt 0:00:08]} Rd6 {[%emt 0:03:15]} 23. Rxb5 {[%emt 0:02:18]} cxb5 {[%emt 0:14:49]} 24. Rxc8 {[%emt 0:00:10]} Rd8 {[%emt 0:00:07]} 25. Qc3 {[%emt 0:03:13]} Bd7 {[%emt 0:02:52]} 26. Rc7 {[%emt 0:01:49]} a6 {[%emt 0:04:54]} 27. Qc5 {[%emt 0:10:47]} Qxc5 {[%emt 0:04:44]} 28. dxc5 {[%emt 0:00:16]} Kf8 {[%emt 0:00:48]} 29. Bb7 {[%emt 0:02:21]} a5 {[%emt 0:01:15]} 30. c6 {[%emt 0:09:08]} Be8 {[%emt 0:00:43]} 31. Ba6 {[%emt 0:00:45]} Rb8 {[%emt 0:03:09]} 32. Rb7 {[%emt 0:02:47]} Rc8 {[%emt 0:00:15]} 33. c7 {[%emt 0:00:15]} Ke7 {[%emt 0:00:24]} 34. Ra7 {[%emt 0:00:12]} 1-0

[Event "ESTCC-65 2025"]
[Site "Swidnica"]
[Date "2025.04.13"]
[Round "9.3"]
[White "Lange, Torsten"]
[Black "Stuer, Marc"]
[Result "0-1"]
[Annotator "NA"]
[ECO "A10"]
[WhiteElo "2025"]
[BlackElo "2038"]
[PlyCount "94"]
[EventDate "2025.04.05"]
[EventType "team-tourn"]
[EventCountry "POL"]
[SourceTitle "playchess.com"]
[Source "ChessBase"]
[SourceQuality "1"]
[WhiteTeam "Germany"]
[BlackTeam "Belgium"]
[WhiteTeamCountry "GER"]
[BlackTeamCountry "BEL"]
[TimeControl "40/5400+30:1800+30"]

1. c4 {[%emt 0:00:03]} f5 {[%emt 0:00:05]} 2. Nc3 {[%emt 0:00:14]} Nf6 {[%emt 0:00:12]} 3. Nf3 {[%emt 0:00:25]} d6 {[%emt 0:01:11]} 4. g3 {[%emt 0:01:06]} g6 {[%emt 0:00:10]} 5. Bg2 {[%emt 0:00:07]} Bg7 {[%emt 0:00:11]} 6. O-O {[%emt 0:00:35]} O-O {[%emt 0:00:22]} 7. d3 {[%emt 0:01:14]} e5 {[%emt 0:00:53]} 8. Rb1 {[%emt 0:00:40]} a5 {[%emt 0:00:33]} 9. a3 {[%emt 0:00:31]} Nc6 {[%emt 0:01:13]} 10. Nd2 {[%emt 0:05:32]} Be6 {[%emt 0:12:33]} 11. Nd5 {[%emt 0:01:06]} Rb8 {[%emt 0:01:26]} 12. b4 {[%emt 0:00:56]} axb4 {[%emt 0:00:06]} 13. axb4 {[%emt 0:00:06]} Ne7 {[%emt 0:00:55]} 14. Qb3 {[%emt 0:06:18]} c6 {[%emt 0:06:32]} 15. Nxe7+ {[%emt 0:03:58]} Qxe7 {[%emt 0:00:04]} 16. b5 {[%emt 0:00:34]} c5 {[%emt 0:04:21]} 17. Bb2 {[%emt 0:01:17]} f4 {[%emt 0:09:02]} 18. Ne4 {[%emt 0:03:53]} fxg3 {[%emt 0:12:19]} 19. hxg3 {[%emt 0:01:01]} Ng4 {[%emt 0:01:54]} 20. Ra1 {[%emt 0:06:45]} h5 {[%emt 0:01:13]} 21. Bc1 {[%emt 0:00:38]} Bh6 {[%emt 0:00:57]} 22. Bxh6 {[%emt 0:06:16]} Nxh6 {[%emt 0:00:14]} 23. Qb2 {[%emt 0:01:02]} Nf5 {[%emt 0:09:06]} 24. Qd2 {[%emt 0:10:37]} Nd4 {[%emt 0:02:05]} 25. Ra2 {[%emt 0:07:34]} Kg7 {[%emt 0:06:28]} 26. Qg5 {[%emt 0:02:11]} Qd7 {[%emt 0:03:03]} 27. Nc3 {[%emt 0:09:25]} Ra8 {[%emt 0:04:12]} 28. Rfa1 {[%emt 0:08:48]} Rf5 {[%emt 0:03:11]} 29. Qh4 {[%emt 0:06:40]} Raf8 {[%emt 0:02:02]} 30. Ra7 {[%emt 0:04:27]} Rxf2 {[%emt 0:02:04]} 31. Be4 {[%emt 0:03:16]} Qf7 {[%emt 0:07:35]} 32. Rxb7 {[%emt 0:05:43]} Bd7 {[%emt 0:00:12]} 33. Bg2 {[%emt 0:00:48]} Nxe2+ {[%emt 0:05:47]} 34. Nxe2 {[%emt 0:00:11]} Rxe2 {[%emt 0:00:16]} 35. Qh1 {[%emt 0:01:40]} h4 {[%emt 0:02:07]} 36. Rf1 {[%emt 0:00:45]} Rf2 {[%emt 0:01:32]} 37. Ra1 {[%emt 0:01:03]} hxg3 {[%emt 0:00:43]} 38. Rxd7 {[%emt 0:01:08]} Qxd7 {[%emt 0:00:16]} 39. b6 {[%emt 0:00:13]} Qg4 {[%emt 0:02:16]} 40. Ra7+ {[%emt 0:00:00]} Kf6 {[%emt 0:00:00]} 41. Qh3 {[%emt 0:04:08]} Kg5 {[%emt 0:12:24]} 42. Qxg4+ {[%emt 0:03:12]} Kxg4 {[%emt 0:00:02]} 43. Rg7 {[%emt 0:01:22]} g5 {[%emt 0:03:05]} 44. Rh7 {[%emt 0:08:04]} Rb2 {[%emt 0:00:53]} 45. Bh3+ {[%emt 0:01:07]} Kf3 {[%emt 0:00:28]} 46. b7 {[%emt 0:01:11]} Rb1+ {[%emt 0:00:21]} 47. Bf1 {[%emt 0:00:49]} Kg4 {[%emt 0:00:33]} 0-1

[Event "ESTCC-65 2025"]
[Site "Swidnica"]
[Date "2025.04.13"]
[Round "9.4"]
[White "Van Herck, Marcel"]
[Black "Becker, Norbert"]
[Result "1-0"]
[Annotator "NA"]
[ECO "B27"]
[WhiteElo "1962"]
[BlackElo "2032"]
[PlyCount "110"]
[EventDate "2025.04.05"]
[EventType "team-tourn"]
[EventCountry "POL"]
[SourceTitle "playchess.com"]
[Source "ChessBase"]
[SourceQuality "1"]
[WhiteTeam "Belgium"]
[BlackTeam "Germany"]
[WhiteTeamCountry "BEL"]
[BlackTeamCountry "GER"]
[TimeControl "40/5400+30:1800+30"]

1. e4 {[%emt 0:00:13]} c5 {[%emt 0:00:09]} 2. Nf3 {[%emt 0:00:10]} g6 {[%emt 0:00:10]} 3. d4 {[%emt 0:00:11]} cxd4 {[%emt 0:00:13]} 4. Qxd4 {[%emt 0:04:49]} Nf6 {[%emt 0:00:24]} 5. Bb5 {[%emt 0:00:15]} Nc6 {[%emt 0:04:47]} 6. Bxc6 {[%emt 0:01:01]} dxc6 {[%emt 0:04:41]} 7. Qxd8+ {[%emt 0:00:13]} Kxd8 {[%emt 0:00:11]} 8. Nc3 {[%emt 0:04:13]} Bg7 {[%emt 0:03:45]} 9. Bf4 {[%emt 0:06:18]} Ke8 {[%emt 0:17:04]} 10. h3 {[%emt 0:05:28]} Nd7 {[%emt 0:10:12]} 11. e5 {[%emt 0:01:53]} Nc5 {[%emt 0:03:49]} 12. O-O-O {[%emt 0:01:14]} Ne6 {[%emt 0:02:36]} 13. Be3 {[%emt 0:00:28]} b6 {[%emt 0:04:24]} 14. Rd2 {[%emt 0:09:54]} Bb7 {[%emt 0:07:34]} 15. Rhd1 {[%emt 0:01:18]} Rd8 {[%emt 0:00:25]} 16. Rxd8+ {[%emt 0:02:25]} Nxd8 {[%emt 0:00:11]} 17. a4 {[%emt 0:04:20]} Ne6 {[%emt 0:09:07]} 18. a5 {[%emt 0:00:46]} c5 {[%emt 0:03:31]} 19. axb6 {[%emt 0:04:30]} axb6 {[%emt 0:00:08]} 20. Nd5 {[%emt 0:06:11]} Bxd5 {[%emt 0:08:19]} 21. Rxd5 {[%emt 0:00:23]} f6 {[%emt 0:00:24]} 22. b4 {[%emt 0:10:35]} cxb4 {[%emt 0:05:45]} 23. Rb5 {[%emt 0:01:27]} Kf7 {[%emt 0:02:14]} 24. Rxb6 {[%emt 0:00:57]} Nc7 {[%emt 0:03:16]} 25. exf6 {[%emt 0:10:36]} Bxf6 {[%emt 0:00:13]} 26. Rxb4 {[%emt 0:03:40]} Nd5 {[%emt 0:02:05]} 27. Rb3 {[%emt 0:00:46]} Nxe3 {[%emt 0:00:35]} 28. Rxe3 {[%emt 0:00:17]} Rc8 {[%emt 0:01:07]} 29. Kd2 {[%emt 0:00:24]} Rd8+ {[%emt 0:01:08]} 30. Rd3 {[%emt 0:00:46]} Ra8 {[%emt 0:00:32]} 31. h4 {[%emt 0:12:25]} Ra5 {[%emt 0:00:54]} 32. g3 {[%emt 0:00:56]} Ke8 {[%emt 0:02:44]} 33. Nd4 {[%emt 0:02:40]} Kf7 {[%emt 0:00:56]} 34. Ne2 {[%emt 0:01:54]} Bg7 {[%emt 0:01:48]} 35. Ke3 {[%emt 0:02:07]} Re5+ {[%emt 0:01:03]} 36. Kf3 {[%emt 0:00:14]} Rf5+ {[%emt 0:00:38]} 37. Kg2 {[%emt 0:00:11]} Re5 {[%emt 0:01:09]} 38. Rf3+ {[%emt 0:00:37]} Ke8 {[%emt 0:00:11]} 39. Re3 {[%emt 0:00:29]} Rc5 {[%emt 0:00:32]} 40. c3 {[%emt 0:00:00]} Rc4 {[%emt 0:00:00]} 41. Kf3 {[%emt 0:01:00]} Kf7 {[%emt 0:02:24]} 42. Re4 {[%emt 0:00:24]} Rc6 {[%emt 0:01:02]} 43. c4 {[%emt 0:00:26]} Bh6 {[%emt 0:00:40]} 44. Nc3 {[%emt 0:01:45]} Rb6 {[%emt 0:00:35]} 45. Rxe7+ {[%emt 0:00:35]} Kxe7 {[%emt 0:01:15]} 46. Nd5+ {[%emt 0:00:04]} Kd6 {[%emt 0:00:19]} 47. Nxb6 {[%emt 0:00:05]} Bg7 {[%emt 0:03:52]} 48. Nd5 {[%emt 0:01:59]} Kc5 {[%emt 0:00:47]} 49. Ne3 {[%emt 0:00:09]} Kd4 {[%emt 0:00:39]} 50. Kg4 {[%emt 0:01:30]} Bh6 {[%emt 0:01:29]} 51. Kf3 {[%emt 0:01:51]} Bg7 {[%emt 0:00:29]} 52. h5 {[%emt 0:04:05]} Bf8 {[%emt 0:01:06]} 53. hxg6 {[%emt 0:01:44]} hxg6 {[%emt 0:00:03]} 54. Kg4 {[%emt 0:00:14]} Bh6 {[%emt 0:02:24]} 55. Nd5 g5 1-0

[Event "ESTCC-65 2025"]
[Site "Swidnica"]
[Date "2025.04.13"]
[Round "9.5"]
[White "Nunn, John D M"]
[Black "Westerinen, Heikki M.J."]
[Result "1-0"]
[Annotator "ChessBase"]
[ECO "C02"]
[WhiteElo "2528"]
[BlackElo "2209"]
[PlyCount "67"]
[EventDate "2025.04.05"]
[EventType "team-tourn"]
[EventCountry "POL"]
[SourceTitle "playchess.com"]
[Source "ChessBase"]
[SourceQuality "1"]
[WhiteTeam "England"]
[BlackTeam "Finland"]
[WhiteTeamCountry "ENG"]
[BlackTeamCountry "FIN"]
[TimeControl "40/5400+30:1800+30"]

1. e4 {[%emt 0:00:06]} e6 {[%emt 0:00:21]} 2. d4 {[%emt 0:00:08]} d5 {[%emt 0:00:26]} 3. e5 {[%emt 0:00:13]} c5 {[%emt 0:05:22]} 4. c3 {[%emt 0:00:17]} Nc6 {[%emt 0:00:33]} 5. Nf3 {[%emt 0:00:13]} Nh6 {[%emt 0:06:16]} 6. Bxh6 {[%emt 0:03:55]} gxh6 {[%emt 0:00:08]} 7. Bb5 {[%emt 0:00:22]} Qb6 {[%emt 0:02:37]} 8. Qe2 {[%emt 0:02:41]} a6 {[%emt 0:06:35]} 9. Ba4 {[%emt 0:12:53]} Qa5 {[%emt 0:03:32]} 10. Bxc6+ {[%emt 0:04:32]} bxc6 {[%emt 0:00:05]} 11. O-O {[%emt 0:00:13]} Qb5 {[%emt 0:12:59]} 12. c4 {[%emt 0:10:32]} Qxc4 {[%emt 0:03:55]} 13. Qxc4 {[%emt 0:00:32]} dxc4 {[%emt 0:00:03]} 14. dxc5 {[%emt 0:00:41]} a5 {[%emt 0:04:56]} 15. Nbd2 {[%emt 0:04:29]} Ba6 {[%emt 0:01:25]} 16. Ne4 {[%emt 0:01:18]} Be7 {[%emt 0:01:34]} 17. Rfd1 {[%emt 0:00:54]} Rb8 {[%emt 0:05:04]} 18. Rd2 {[%emt 0:09:22]} O-O {[%emt 0:07:15]} 19. Rad1 {[%emt 0:01:30]} f5 {[%emt 0:01:41]} 20. Nd6 {[%emt 0:06:27]} Bg5 {[%emt 0:06:11]} 21. Rc2 {[%emt 0:02:40]} Bb5 {[%emt 0:01:35]} 22. Re1 {[%emt 0:01:23]} a4 {[%emt 0:09:15]} 23. h4 {[%emt 0:06:21]} Bd8 {[%emt 0:01:01]} 24. Nd4 {[%emt 0:00:23]} Ba5 {[%emt 0:01:03]} 25. Rec1 {[%emt 0:04:21]} Rfe8 {[%emt 0:05:44]} 26. Nxe8 {[%emt 0:01:02]} Rxe8 {[%emt 0:00:03]} 27. Rxc4 {[%emt 0:00:16]} Bd2 {[%emt 0:01:46]} 28. R1c2 {[%emt 0:01:51]} Bxc4 {[%emt 0:00:34]} 29. Rxc4 {[%emt 0:00:05]} Rb8 {[%emt 0:03:14]} 30. Rc2 {[%emt 0:00:13]} Bf4 {[%emt 0:03:03]} 31. Nxc6 {[%emt 0:00:19]} Rb7 {[%emt 0:00:26]} 32. g3 {[%emt 0:01:01]} Rc7 {[%emt 0:00:14]} 33. gxf4 {[%emt 0:00:23]} Rxc6 {[%emt 0:00:03]} 34. b4 {[%emt 0:00:06]} 1-0

[Event "ESTCC-65 2025"]
[Site "Swidnica"]
[Date "2025.04.13"]
[Round "9.6"]
[White "Joentausta, Hannu"]
[Black "Mestel, A Jonathan"]
[Result "1/2-1/2"]
[Annotator "ChessBase"]
[ECO "E91"]
[WhiteElo "2081"]
[BlackElo "2449"]
[PlyCount "63"]
[EventDate "2025.04.05"]
[EventType "team-tourn"]
[EventCountry "POL"]
[SourceTitle "playchess.com"]
[Source "ChessBase"]
[SourceQuality "1"]
[WhiteTeam "Finland"]
[BlackTeam "England"]
[WhiteTeamCountry "FIN"]
[BlackTeamCountry "ENG"]
[TimeControl "40/5400+30:1800+30"]

1. d4 {[%emt 0:00:04]} Nf6 {[%emt 0:00:40]} 2. c4 {[%emt 0:00:15]} g6 {[%emt 0:01:08]} 3. Nc3 {[%emt 0:00:21]} Bg7 {[%emt 0:00:09]} 4. e4 {[%emt 0:02:12]} d6 {[%emt 0:00:19]} 5. Nf3 {[%emt 0:00:06]} O-O {[%emt 0:00:56]} 6. Be2 {[%emt 0:00:08]} Nbd7 {[%emt 0:02:02]} 7. O-O {[%emt 0:00:18]} e5 {[%emt 0:00:47]} 8. Be3 {[%emt 0:08:07]} c6 {[%emt 0:01:28]} 9. Qc2 {[%emt 0:04:03]} Ng4 {[%emt 0:04:12]} 10. Bg5 {[%emt 0:00:41]} f6 {[%emt 0:00:20]} 11. Bd2 {[%emt 0:00:57]} Nh6 {[%emt 0:03:13]} 12. d5 {[%emt 0:09:09]} Qe7 {[%emt 0:14:08]} 13. b4 {[%emt 0:04:13]} f5 {[%emt 0:06:12]} 14. Bg5 {[%emt 0:01:06]} Qe8 {[%emt 0:03:50]} 15. Rad1 {[%emt 0:02:51]} Nf7 {[%emt 0:07:51]} 16. dxc6 {[%emt 0:16:01]} bxc6 {[%emt 0:00:44]} 17. b5 {[%emt 0:07:25]} Nb6 {[%emt 0:12:03]} 18. a4 {[%emt 0:06:44]} Be6 {[%emt 0:08:11]} 19. bxc6 {[%emt 0:03:04]} Qxc6 {[%emt 0:01:48]} 20. a5 {[%emt 0:02:15]} Nd7 {[%emt 0:01:00]} 21. Nd5 {[%emt 0:07:45]} Bxd5 {[%emt 0:06:11]} 22. exd5 {[%emt 0:01:12]} Qc7 {[%emt 0:01:29]} 23. Bd2 {[%emt 0:01:10]} e4 {[%emt 0:01:56]} 24. Ng5 {[%emt 0:00:41]} Nxg5 {[%emt 0:04:25]} 25. Bxg5 {[%emt 0:00:03]} Rae8 {[%emt 0:00:52]} 26. Qa4 {[%emt 0:04:25]} Ne5 {[%emt 0:04:09]} 27. Bf4 {[%emt 0:03:25]} Rb8 {[%emt 0:01:47]} 28. Rb1 {[%emt 0:00:19]} Rfc8 {[%emt 0:00:45]} 29. Rfc1 {[%emt 0:00:58]} h5 {[%emt 0:02:32]} 30. h3 {[%emt 0:00:09]} Kh7 {[%emt 0:00:11]} 31. Be3 {[%emt 0:01:13]} Rxb1 {[%emt 0:03:32]} 32. Rxb1 {[%emt 0:00:03]} 1/2-1/2

[Event "ESTCC-65 2025"]
[Site "Swidnica"]
[Date "2025.04.13"]
[Round "9.7"]
[White "Large, Peter G"]
[Black "Vinke, Dietmar"]
[Result "1/2-1/2"]
[Annotator "ChessBase"]
[ECO "A45"]
[WhiteElo "2342"]
[BlackElo "2078"]
[PlyCount "89"]
[EventDate "2025.04.05"]
[EventType "team-tourn"]
[EventCountry "POL"]
[SourceTitle "playchess.com"]
[Source "ChessBase"]
[SourceQuality "1"]
[WhiteTeam "England"]
[BlackTeam "Finland"]
[WhiteTeamCountry "ENG"]
[BlackTeamCountry "FIN"]
[TimeControl "40/5400+30:1800+30"]

1. d4 {[%emt 0:00:33]} Nf6 {[%emt 0:00:05]} 2. Bg5 {[%emt 0:00:06]} c5 {[%emt 0:00:43]} 3. Bxf6 {[%emt 0:00:09]} gxf6 {[%emt 0:00:07]} 4. d5 {[%emt 0:00:06]} d6 {[%emt 0:00:28]} 5. Nd2 {[%emt 0:00:48]} Bg7 {[%emt 0:01:06]} 6. e3 {[%emt 0:01:35]} O-O {[%emt 0:00:21]} 7. Nh3 {[%emt 0:04:28]} f5 {[%emt 0:03:27]} 8. Qh5 {[%emt 0:07:07]} e5 {[%emt 0:01:22]} 9. e4 {[%emt 0:05:22]} Qf6 {[%emt 0:02:26]} 10. Bd3 {[%emt 0:03:07]} Qg6 {[%emt 0:20:52]} 11. Qxg6 {[%emt 0:05:09]} hxg6 {[%emt 0:00:56]} 12. Ng5 {[%emt 0:00:25]} Bf6 {[%emt 0:07:59]} 13. h4 {[%emt 0:00:55]} Na6 {[%emt 0:03:09]} 14. c3 {[%emt 0:09:58]} Nc7 {[%emt 0:00:28]} 15. f3 {[%emt 0:02:02]} f4 {[%emt 0:12:24]} 16. Ke2 {[%emt 0:05:30]} Kg7 {[%emt 0:03:52]} 17. g3 {[%emt 0:04:52]} fxg3 {[%emt 0:00:17]} 18. Rag1 {[%emt 0:01:14]} Rh8 {[%emt 0:08:09]} 19. Rxg3 {[%emt 0:01:49]} Bd7 {[%emt 0:15:55]} 20. Nc4 {[%emt 0:03:29]} Be7 {[%emt 0:00:34]} 21. b4 {[%emt 0:14:32]} b5 {[%emt 0:01:04]} 22. Ne3 {[%emt 0:00:07]} c4 {[%emt 0:00:18]} 23. Bc2 {[%emt 0:00:06]} f6 {[%emt 0:04:51]} 24. Ne6+ {[%emt 0:02:19]} Bxe6 {[%emt 0:00:35]} 25. dxe6 {[%emt 0:00:08]} Nxe6 {[%emt 0:00:11]} 26. Nd5 {[%emt 0:00:35]} Kf7 {[%emt 0:01:10]} 27. Rg4 {[%emt 0:02:02]} Rh6 {[%emt 0:04:55]} 28. a4 {[%emt 0:00:24]} a6 {[%emt 0:03:03]} 29. Ra1 {[%emt 0:00:24]} bxa4 {[%emt 0:01:07]} 30. Rxa4 {[%emt 0:00:37]} g5 {[%emt 0:00:20]} 31. Bb1 {[%emt 0:07:51]} gxh4 {[%emt 0:01:24]} 32. Ba2 {[%emt 0:00:06]} Bd8 {[%emt 0:01:51]} 33. Bxc4 {[%emt 0:00:25]} Kf8 {[%emt 0:00:09]} 34. Ne3 {[%emt 0:02:47]} Nf4+ {[%emt 0:00:33]} 35. Kf1 {[%emt 0:00:24]} h3 {[%emt 0:00:26]} 36. Rg8+ {[%emt 0:08:21]} Ke7 {[%emt 0:00:02]} 37. Rg7+ {[%emt 0:00:41]} Ke8 {[%emt 0:00:11]} 38. Nf5 {[%emt 0:06:17]} Bb6 {[%emt 0:00:21]} 39. Nxd6+ {[%emt 0:01:23]} Kd8 {[%emt 0:00:22]} 40. Bb5 {[%emt 0:00:00]} Ra7 {[%emt 0:00:00]} 41. Rg8+ {[%emt 0:07:07]} Kc7 {[%emt 0:03:08]} 42. Ne8+ {[%emt 0:01:55]} Kb7 {[%emt 0:00:19]} 43. Nd6+ {[%emt 0:04:40]} Kc7 {[%emt 0:00:10]} 44. Ne8+ {[%emt 0:00:18]} Kb7 {[%emt 0:00:17]} 45. Nd6+ 1/2-1/2